fUSD/lending_fUSD_20240301
["ID","MTS","AMOUNT","RATE_DAILY","PERIOD"]
[315944737,1709297445253,-500.0,0.00022191,2]
[315944738,1709297445263,-340.89750021,0.00022191,2]
[315944739,1709297445412,-500.0,0.00021917,2]
[315944740,1709297445422,-231.20755435,0.00022191,2]
[315944745,1709297445780,-500.0,0.00021917,2]
[315944746,1709297445790,-370.18494544,0.00022191,2]
[315944748,1709297445799,-500.0,0.00022191,2]
[315944750,1709297445808,-500.0,0.00022191,2]
[315944753,1709297445818,-1259.5,0.00022191,2]
[315944756,1709297445827,-507.24378369,0.00022191,2]
[315944758,1709297445837,-500.0,0.00022191,2]
[315944760,1709297445846,-500.0,0.00022191,2]
[315944762,1709297445855,-500.0,0.00022191,2]
[315944764,1709297445866,-500.0,0.00022191,2]
[315944766,1709297445878,-500.0,0.00022191,2]
[315944768,1709297445887,-1909.52,0.00022191,2]
[315944770,1709297445896,-613.35,0.00022191,2]
[315944772,1709297445905,-737.06855765,0.00022191,2]
[315944775,1709297445917,-560.7508178,0.00022191,2]
[315944834,1709297446911,-500.0,0.00021917,2]
[315944835,1709297446922,-500.0,0.00021917,2]
[315944836,1709297446931,-943.64184,0.00022122,10]
[315944837,1709297446947,-72.51759733,0.00022122,10]
[315944838,1709297446958,-500.0,0.00022123,2]
[315944839,1709297446967,-500.0,0.00022123,2]
[315944840,1709297446977,-500.0,0.00022123,2]
[315944841,1709297446986,-89.08974595,0.00022154,2]
[315944842,1709297447037,-1010.90025405,0.00022154,2]
[315944843,1709297447048,-133.90022235,0.00022191,2]
[315944844,1709297447059,-3013.31464831,0.00022191,2]
[315944845,1709297447079,-500.0,0.00021917,2]
[315944846,1709297447089,-334.80575389,0.00022191,2]
[315944847,1709297447098,-500.0,0.00022191,2]
[315944848,1709297447107,-500.0,0.00022191,2]
[315944849,1709297447116,-655.46,0.00022191,2]
[315944850,1709297447126,-500.0,0.00022191,2]
[315944851,1709297447135,-500.0,0.00022191,2]
[315944852,1709297447144,-343.33386752,0.00022191,2]
[315944853,1709297447160,-719.71613248,0.00022191,2]
[315944854,1709297447169,-500.0,0.00022191,2]
[315944855,1709297447178,-500.0,0.00022191,2]
[315944856,1709297447187,-500.0,0.00022191,2]
[315944857,1709297447196,-500.0,0.00022191,2]
[315944858,1709297447205,-500.0,0.00022191,2]
[315944859,1709297447214,-500.0,0.00022191,2]
[315944860,1709297447223,-500.0,0.00022191,2]
[315944861,1709297447232,-743.3,0.00022191,2]
[315944862,1709297447242,-500.0,0.00022191,2]
[315944863,1709297447252,-2062.63,0.00022191,2]
[315944864,1709297447261,-500.0,0.00022191,2]
[315944865,1709297447270,-1078.28,0.00022191,2]
[315944866,1709297447280,-500.0,0.00022191,2]
[315944867,1709297447289,-500.0,0.00022191,2]
[315944868,1709297447298,-500.0,0.00022191,2]
[315944869,1709297447308,-500.0,0.00022191,2]
[315944870,1709297447317,-500.0,0.00022191,2]
[315944871,1709297447326,-500.0,0.00022191,2]
[315944872,1709297447335,-500.0,0.00022191,2]
[315944873,1709297447344,-500.0,0.00022191,2]
[315944874,1709297447353,-500.0,0.00022191,2]
[315944875,1709297447363,-500.0,0.00022191,2]
[315944876,1709297447372,-500.0,0.00022191,2]
[315944877,1709297447382,-500.0,0.00022191,2]
[315944878,1709297447391,-500.0,0.00022191,2]
[315944879,1709297447401,-500.0,0.00022191,2]
[315944880,1709297447410,-500.0,0.00022191,2]
[315944881,1709297447419,-500.0,0.00022191,2]
[315944882,1709297447429,-500.0,0.00022191,2]
[315944883,1709297447439,-581.26,0.00022191,2]
[315944884,1709297447448,-250.26698752,0.00022191,2]
[315944885,1709297447461,-70.92051887,0.00022191,2]
[315944886,1709297447471,-1038.08,0.00022191,2]
[315944887,1709297447480,-500.0,0.00022191,2]
[315944888,1709297447490,-290.9258384,0.00022191,2]
[315944889,1709297447500,-500.0,0.00022191,2]
[315944890,1709297447509,-500.0,0.00022191,2]
[315944891,1709297447519,-299.13187706,0.00022191,2]
[315944892,1709297447529,-500.0,0.00022191,2]
[315944893,1709297447539,-500.0,0.00022191,2]
[315944894,1709297447549,-500.0,0.00022191,2]
[315944895,1709297447558,-971.82,0.00022191,2]
[315944896,1709297447569,-982.49,0.00022191,2]
[315944897,1709297447579,-500.0,0.00022191,2]
[315944898,1709297447589,-500.0,0.00022191,2]
[315944899,1709297447599,-500.0,0.00022191,2]
[315944900,1709297447609,-486.77154127,0.00022191,2]
[315944901,1709297447619,-500.0,0.00022191,2]
[315944902,1709297447628,-500.0,0.00022191,2]
[315944903,1709297447637,-519.15065872,0.00022191,2]
[315944904,1709297447647,-539.44,0.00022191,2]
[315944905,1709297447656,-765.61,0.00022191,2]
[315944906,1709297447666,-500.0,0.00022191,2]
[315944907,1709297447675,-500.0,0.00022191,2]
[315944908,1709297447685,-500.0,0.00022191,2]
[315944909,1709297447694,-500.0,0.00022191,2]
[315944910,1709297447703,-500.0,0.00022191,2]
[315944911,1709297447712,-500.0,0.00022191,2]
[315944912,1709297447722,-500.0,0.00022191,2]
[315944913,1709297447731,-992.52,0.00022191,2]
[315944914,1709297447740,-1235.69,0.00022191,2]
[315944915,1709297447750,-1069.19,0.00022191,2]
[315944916,1709297447759,-514.97930096,0.00022191,2]
[315944917,1709297447769,-4029.43,0.00022191,2]
[315944918,1709297447778,-500.0,0.00022191,2]
[315944919,1709297447788,-501.19089524,0.00022191,2]
[315944920,1709297447798,-1478.18,0.00022191,2]
[315944921,1709297447807,-500.0,0.00022191,2]
[315944922,1709297447818,-500.0,0.00022191,2]
[315944923,1709297447827,-1822.23,0.00022191,2]
[315944924,1709297447836,-1902.12929332,0.00022191,2]
[315944925,1709297448013,-500.0,0.00021917,2]
[315944926,1709297448023,-887.54070668,0.00022191,2]
[315944927,1709297448032,-500.0,0.00022191,2]
[315944928,1709297448041,-132.66094184,0.00022191,2]
[315944992,1709298042286,-2000.0,0.00026,30]
[315944993,1709298042310,-2000.0,0.00026,30]
[315944994,1709298042339,-151.0,0.00026036,30]
[315944995,1709298042409,-150.0,0.00027084,120]
[315945012,1709298395108,-151.23083444,0.00017438,2]
[315945020,1709298632173,-372.7257167,0.00017438,2]
[315945022,1709298632346,-500.0,0.00017438,2]
[315945023,1709298632694,-1025.77593813,0.00017438,2]
[315945024,1709298632703,-440.94034187,0.00017438,2]
[315945033,1709298633915,207.0,0.00016438,2]
[315945041,1709298638214,-311.21120683,0.00017438,2]
[315945042,1709298638243,-624.66,0.00017438,2]
[315945043,1709298638254,-784.69092968,0.00017438,2]
[315945044,1709298638263,-158.1121691,0.00017438,2]
[315945045,1709298638272,-286.04421351,0.00017438,2]
[315945046,1709298638281,-549.18300522,0.00017438,2]
[315945047,1709298638290,-546.86863386,0.0001778,2]
[315945048,1709298638301,-514.79,0.00018267,2]
[315945049,1709298638311,-300.0,0.00018767,2]
[315945050,1709298638320,-167.65342713,0.000199,2]
[315945051,1709298638331,-2000.0,0.0002,2]
[315945052,1709298638340,-1200.66776095,0.0002,2]
[315945053,1709298638349,-350.0,0.0002,3]
[315945054,1709298638358,-155.0,0.0002,2]
[315945055,1709298638367,-1016.15943733,0.00020043,10]
[315945056,1709298638376,-569.88,0.00020045,2]
[315945057,1709298638385,-207.0,0.00020068,6]
[315945058,1709298638394,-250.0,0.00020095,2]
[315945059,1709298638403,-250.0,0.00020115,2]
[315945060,1709298638412,-167.65342711,0.00020213,2]
[315945061,1709298638422,-204.59,0.00020301,2]
[315945062,1709298638431,-4344.51,0.00020312,2]
[315945063,1709298638440,-250.0,0.00020348,2]
[315945064,1709298638449,-407.37,0.00020449,2]
[315945065,1709298638458,-407.37,0.00020449,2]
[315945066,1709298638467,-167.65342711,0.00020526,2]
[315945067,1709298638476,-514.79,0.00020531,2]
[315945068,1709298638485,-838.1006164,0.000206,2]
[315945069,1709298638495,-430.12,0.00020737,2]
[315945070,1709298638504,-167.65342711,0.00020839,2]
[315945071,1709298638512,-2000.0,0.00021,3]
[315945072,1709298638521,-400.0,0.00021,2]
[315945073,1709298638530,-631.73,0.00021096,2]
[315945074,1709298638539,-919.73,0.00021096,2]
[315945076,1709298638548,-167.65342711,0.00021152,2]
[315945078,1709298638557,-938.6,0.00021408,2]
[315945080,1709298638566,-920.07,0.00021408,2]
[315945082,1709298638577,-916.71,0.00021408,2]
[315945084,1709298638590,-13406.31632136,0.00021441,6]
[315945087,1709298638616,-264.62654084,0.00021441,6]
[315945089,1709298638628,-679.21665167,0.00021441,6]
[315945092,1709298638643,-9837.34198096,0.00021441,6]
[315945094,1709298638655,-49817.12201957,0.00021441,6]
[315945096,1709298638665,-1915.69145356,0.00021443,6]
[315945097,1709298638674,-7729.82149077,0.00021444,6]
[315945098,1709298638684,-50766.38610116,0.00021446,6]
[315945099,1709298638695,-23238.23741324,0.00021446,6]
[315945100,1709298638705,-1512.46811331,0.00021461,6]
[315945101,1709298638714,-167.65342711,0.00021465,2]
[315945102,1709298638724,-31657.49826638,0.00021466,6]
[315945105,1709298638800,-8498.67451087,0.00021466,6]
[315945114,1709298642107,-1606.93971742,0.00021378,2]
[315945115,1709298642154,-265.70195492,0.00021378,2]
[315945116,1709298642205,-4534.98122466,0.00021378,2]
[315945117,1709298642216,-2928.20950592,0.00021466,6]
[315945118,1709298642229,-1960.73424462,0.00021466,6]
[315945119,1709298642265,-1213.13686397,0.00021466,6]
[315945120,1709298642277,-354.33584849,0.00021466,6]
[315945121,1709298642290,-410.54325405,0.00021466,6]
[315945122,1709298642303,-1908.93867144,0.00021466,6]
[315945123,1709298642381,-1531.14617822,0.0002,3]
[315945124,1709298642395,-4239.88145679,0.0002,3]
[315945125,1709298642419,-8281.91825307,0.00021466,6]
[315945126,1709298642438,-1326.29399969,0.00021466,6]
[315945127,1709298642456,-2013.05539529,0.00021466,6]
[315945128,1709298642475,-1492.13306541,0.00021466,6]
[315945134,1709298643022,-11959.1516352,0.00021466,6]
[315945135,1709298643036,-1915.69145356,0.00021469,6]
[315945136,1709298643049,-1915.69145356,0.00021478,6]
[315945137,1709298643062,-1512.46811331,0.00021482,6]
[315945138,1709298643075,-1915.69145356,0.00021491,6]
[315945141,1709298643089,-7729.82149077,0.00021491,6]
[315945143,1709298643102,-7729.82149077,0.00021492,6]
[315945144,1709298643118,-74004.6235144,0.00021493,6]
[315945145,1709298643132,-1512.46811331,0.00021496,6]
[315945146,1709298643146,-1512.46811331,0.00021496,6]
[315945147,1709298643159,-7729.82149077,0.00021498,6]
[315945149,1709298643172,-277.0,0.00021621,2]
[315945150,1709298643184,-1718.0,0.00021621,2]
[315945151,1709298643195,-519.0,0.00021621,2]
[315945152,1709298643207,-167.65342711,0.00021778,2]
[315945153,1709298643220,-37289.3157,0.00021817,2]
[315945154,1709298643231,-993.64119276,0.00021817,2]
[315945155,1709298643244,-250.0,0.000219,2]
[315945156,1709298643257,-2641.64693373,0.000219,2]
[315945157,1709298643269,-151.46,0.00021907,2]
[315945158,1709298643282,-155.30887482,0.00021915,2]
[315945159,1709298643302,-251.82440534,0.00021915,2]
[315945160,1709298643313,-500.0,0.00021916,2]
[315945161,1709298643324,-585.07528371,0.00021916,2]
[315945162,1709298643337,-534.09767184,0.00021917,2]
[315945163,1709298643348,-512.85673621,0.00021917,2]
[315945164,1709298643359,-500.0,0.00021917,2]
[315945165,1709298643397,-500.0,0.00021917,2]
[315945166,1709298643410,-500.0,0.00021917,2]
[315945167,1709298643425,-500.0,0.00021917,2]
[315945168,1709298643439,-500.0,0.00021917,2]
[315945169,1709298643454,-500.0,0.00021917,2]
[315945170,1709298643467,-500.0,0.00021917,2]
[315945171,1709298643481,-500.0,0.00021917,2]
[315945172,1709298643494,-500.0,0.00021917,2]
[315945173,1709298643507,-500.0,0.00021917,2]
[315945174,1709298643520,-500.0,0.00021917,2]
[315945175,1709298643533,-500.0,0.00021917,2]
[315945176,1709298643547,-500.0,0.00021917,2]
[315945177,1709298643559,-500.0,0.00021917,2]
[315945178,1709298643572,-500.0,0.00021917,2]
[315945179,1709298643586,-500.0,0.00021917,2]
[315945181,1709298643599,-509.39992507,0.00021917,2]
[315945183,1709298643611,-500.0,0.00021917,2]
[315945185,1709298643628,-500.0,0.00021917,2]
[315945188,1709298643640,-500.0,0.00021917,2]
[315945190,1709298643653,-500.0,0.00021917,2]
[315945192,1709298643665,-500.0,0.00021917,2]
[315945194,1709298643677,-520.91336894,0.00021917,2]
[315945196,1709298643689,-500.0,0.00021917,2]
[315945197,1709298643700,-500.0,0.00021917,2]
[315945198,1709298643712,-500.0,0.00021917,2]
[315945199,1709298643724,-533.98185083,0.00021917,2]
[315945200,1709298643735,-516.93603229,0.00021917,2]
[315945201,1709298643746,-500.0,0.00021917,2]
[315945202,1709298643757,-500.0,0.00021917,2]
[315945203,1709298643768,-485.0,0.00021917,2]
[315945204,1709298643780,-500.0,0.00021917,2]
[315945205,1709298643791,-500.0,0.00021917,2]
[315945206,1709298643803,-500.0,0.00021917,2]
[315945208,1709298643815,-500.0,0.00021917,2]
[315945211,1709298643827,-500.0,0.00021917,2]
[315945213,1709298643839,-500.0,0.00021917,2]
[315945215,1709298643850,-500.0,0.00021917,2]
[315945217,1709298643862,-500.0,0.00021917,2]
[315945219,1709298643874,-500.0,0.00021917,2]
[315945220,1709298643885,-518.297233,0.00021917,2]
[315945221,1709298643897,-500.0,0.00021917,2]
[315945222,1709298643909,-500.0,0.00021917,2]
[315945223,1709298643920,-500.0,0.00021917,2]
[315945224,1709298643931,-500.0,0.00021917,2]
[315945225,1709298643942,-500.0,0.00021917,2]
[315945226,1709298643955,-500.0,0.00021917,2]
[315945227,1709298643967,-500.0,0.00021917,2]
[315945228,1709298643979,-500.0,0.00021917,2]
[315945229,1709298643990,-500.0,0.00021917,2]
[315945230,1709298644001,-500.0,0.00021917,2]
[315945231,1709298644013,-500.0,0.00021917,2]
[315945232,1709298644023,-500.0,0.00021917,2]
[315945233,1709298644035,-500.0,0.00021917,2]
[315945234,1709298644046,-500.0,0.00021917,2]
[315945235,1709298644057,-500.0,0.00021917,2]
[315945236,1709298644069,-619.19269236,0.00021917,2]
[315945237,1709298644081,-500.0,0.00021917,2]
[315945238,1709298644092,-332.61367763,0.00021917,2]
[315945239,1709298644103,-500.0,0.00021917,2]
[315945240,1709298644115,-500.0,0.00021917,2]
[315945241,1709298644126,-500.0,0.00021917,2]
[315945242,1709298644136,-507.17554812,0.00021917,2]
[315945243,1709298644149,-535.72888687,0.00021917,2]
[315945244,1709298644160,-500.0,0.00021917,2]
[315945245,1709298644170,-500.0,0.00021917,2]
[315945246,1709298644181,-507.87635905,0.00021917,2]
[315945247,1709298644192,-500.0,0.00021917,2]
[315945248,1709298644203,-500.0,0.00021917,2]
[315945249,1709298644214,-500.0,0.00021917,2]
[315945250,1709298644226,-500.0,0.00021917,2]
[315945251,1709298644237,-500.0,0.00021917,2]
[315945252,1709298644248,-500.0,0.00021917,2]
[315945253,1709298644259,-500.0,0.00021917,2]
[315945254,1709298644271,-528.49509307,0.00021917,2]
[315945255,1709298644282,-500.0,0.00021917,2]
[315945256,1709298644294,-500.0,0.00021917,2]
[315945257,1709298644305,-500.0,0.00021917,2]
[315945258,1709298644316,-500.0,0.00021917,2]
[315945259,1709298644327,-500.0,0.00021917,2]
[315945260,1709298644338,-500.0,0.00021917,2]
[315945261,1709298644349,-500.0,0.00021917,2]
[315945262,1709298644360,-500.0,0.00021917,2]
[315945263,1709298644371,-500.0,0.00021917,2]
[315945264,1709298644382,-500.0,0.00021917,2]
[315945265,1709298644400,-500.0,0.00021917,2]
[315945266,1709298644420,-500.0,0.00021917,2]
[315945267,1709298644433,-500.0,0.00021917,2]
[315945268,1709298644447,-500.0,0.00021917,2]
[315945269,1709298644459,-527.19398821,0.00021917,2]
[315945270,1709298644472,-500.0,0.00021917,2]
[315945271,1709298644484,-501.25690599,0.00021917,2]
[315945272,1709298644496,-500.0,0.00021917,2]
[315945273,1709298644508,-500.0,0.00021917,2]
[315945274,1709298644520,-500.0,0.00021917,2]
[315945275,1709298644532,-500.0,0.00021917,2]
[315945276,1709298644545,-500.0,0.00021917,2]
[315945277,1709298644557,-500.0,0.00021917,2]
[315945278,1709298644568,-500.0,0.00021917,2]
[315945279,1709298644581,-500.0,0.00021917,2]
[315945280,1709298644593,-500.0,0.00021917,2]
[315945281,1709298644605,-500.0,0.00021917,2]
[315945282,1709298644617,-500.0,0.00021917,2]
[315945283,1709298644629,-535.7309449,0.00021917,2]
[315945284,1709298644641,-501.29326566,0.00021917,2]
[315945285,1709298644652,-500.0,0.00021917,2]
[315945286,1709298644663,-500.0,0.00021917,2]
[315945287,1709298644675,-510.42514634,0.00021917,2]
[315945288,1709298644687,-500.0,0.00021917,2]
[315945289,1709298644698,-500.0,0.00021917,2]
[315945290,1709298644712,-500.0,0.00021917,2]
[315945291,1709298644724,-500.0,0.00021917,2]
[315945292,1709298644736,-500.0,0.00021917,2]
[315945293,1709298644747,-503.19717489,0.00021917,2]
[315945294,1709298644758,-500.0,0.00021917,2]
[315945295,1709298644770,-502.70966153,0.00021917,2]
[315945296,1709298644781,-515.54771379,0.00021917,2]
[315945297,1709298644792,-565.34,0.00021917,2]
[315945298,1709298644802,-500.0,0.00021917,2]
[315945299,1709298644813,-500.83912108,0.00021917,2]
[315945300,1709298644826,-500.0,0.00021917,2]
[315945301,1709298644836,-500.0,0.00021917,2]
[315945302,1709298644847,-500.0,0.00021917,2]
[315945303,1709298644858,-500.0,0.00021917,2]
[315945304,1709298644869,-500.0,0.00021917,2]
[315945305,1709298644879,-500.60937784,0.00021917,2]
[315945306,1709298644890,-500.0,0.00021917,2]
[315945307,1709298644902,-500.0,0.00021917,2]
[315945308,1709298644913,-500.0,0.00021917,2]
[315945309,1709298644924,-502.76344494,0.00021917,2]
[315945310,1709298644935,-376.09,0.00021917,2]
[315945311,1709298644946,-500.0,0.00021917,2]
[315945312,1709298644957,-500.0,0.00021917,2]
[315945313,1709298644968,-500.0,0.00021917,2]
[315945314,1709298644978,-500.0,0.00021917,2]
[315945315,1709298644989,-500.0,0.00021917,2]
[315945316,1709298644999,-500.0,0.00021917,2]
[315945317,1709298645010,-495.46516815,0.00021917,2]
[315945318,1709298645020,-500.0,0.00021917,2]
[315945319,1709298645031,-298.0,0.00021917,2]
[315945320,1709298645041,-500.0,0.00021917,2]
[315945321,1709298645052,-500.0,0.00021917,2]
[315945322,1709298645063,-500.0,0.00021917,2]
[315945323,1709298645073,-402.28274566,0.00021917,2]
[315945324,1709298645084,-500.0,0.00021917,2]
[315945325,1709298645094,-500.0,0.00021917,2]
[315945326,1709298645104,-500.0,0.00021917,2]
[315945327,1709298645115,-500.0,0.00021917,2]
[315945328,1709298645126,-500.0,0.00021917,2]
[315945329,1709298645136,-500.0,0.00021917,2]
[315945330,1709298645147,-500.0,0.00021917,2]
[315945331,1709298645157,-500.0,0.00021917,2]
[315945332,1709298645168,-500.0,0.00021917,2]
[315945333,1709298645179,-500.0,0.00021917,2]
[315945334,1709298645189,-500.0,0.00021917,2]
[315945335,1709298645200,-500.0,0.00021917,2]
[315945336,1709298645211,-521.0278431,0.00021917,2]
[315945337,1709298645224,-500.0,0.00021917,2]
[315945338,1709298645234,-500.0,0.00021917,2]
[315945339,1709298645245,-500.0,0.00021917,2]
[315945340,1709298645256,-500.0,0.00021917,2]
[315945341,1709298645267,-500.0,0.00021917,2]
[315945342,1709298645277,-500.0,0.00021917,2]
[315945343,1709298645288,-500.0,0.00021917,2]
[315945344,1709298645300,-500.0,0.00021917,2]
[315945345,1709298645312,-500.0,0.00021917,2]
[315945346,1709298645322,-500.0,0.00021917,2]
[315945347,1709298645333,-500.0,0.00021917,2]
[315945348,1709298645344,-500.0,0.00021917,2]
[315945349,1709298645354,-500.0,0.00021917,2]
[315945350,1709298645365,-500.0,0.00021917,2]
[315945351,1709298645375,-372.02763329,0.00021917,2]
[315945352,1709298645386,-500.0,0.00021917,2]
[315945353,1709298645397,-500.0,0.00021917,2]
[315945354,1709298645408,-500.0,0.00021917,2]
[315945355,1709298645418,-500.0,0.00021917,2]
[315945356,1709298645429,-500.0,0.00021917,2]
[315945357,1709298645439,-500.0,0.00021917,2]
[315945358,1709298645450,-500.0,0.00021917,2]
[315945359,1709298645461,-500.0,0.00021917,2]
[315945360,1709298645472,-500.0,0.00021917,2]
[315945361,1709298645483,-500.0,0.00021917,2]
[315945362,1709298645494,-500.0,0.00021917,2]
[315945363,1709298645505,-500.0,0.00021917,2]
[315945364,1709298645516,-500.0,0.00021917,2]
[315945365,1709298645527,-587.76209387,0.00021917,2]
[315945366,1709298645538,-526.29,0.00021917,2]
[315945367,1709298645550,-500.0,0.00021917,2]
[315945368,1709298645561,-500.0,0.00021917,2]
[315945369,1709298645572,-500.0,0.00021917,2]
[315945370,1709298645583,-500.0,0.00021917,2]
[315945371,1709298645595,-509.79539864,0.00021917,2]
[315945372,1709298645606,-503.86276898,0.00021917,2]
[315945373,1709298645617,-223.87280388,0.00021917,2]
[315945374,1709298645628,-500.0,0.00021917,2]
[315945375,1709298645640,-500.0,0.00021917,2]
[315945376,1709298645651,-500.0,0.00021917,2]
[315945377,1709298645662,-500.0,0.00021917,2]
[315945378,1709298645673,-500.0,0.00021917,2]
[315945379,1709298645684,-500.0,0.00021917,2]
[315945380,1709298646086,-500.0,0.00021917,2]
[315945383,1709298646112,-500.0,0.00021917,2]
[315945385,1709298646128,-578.41858865,0.00021917,2]
[315945386,1709298646138,-500.0,0.00021917,2]
[315945387,1709298646147,-500.0,0.00021917,2]
[315945388,1709298646156,-500.0,0.00021917,2]
[315945389,1709298646167,-500.0,0.00021917,2]
[315945390,1709298646177,-500.0,0.00021917,2]
[315945391,1709298646186,-500.0,0.00021917,2]
[315945392,1709298646195,-500.0,0.00021917,2]
[315945393,1709298646207,-500.0,0.00021917,2]
[315945394,1709298646217,-500.0,0.00021917,2]
[315945395,1709298646228,-500.0,0.00021917,2]
[315945396,1709298646237,-500.0,0.00021917,2]
[315945397,1709298646247,-500.0,0.00021917,2]
[315945398,1709298646257,-500.0,0.00021917,2]
[315945399,1709298646269,-500.0,0.00021917,2]
[315945400,1709298646279,-636.83,0.00021917,2]
[315945401,1709298646288,-515.16,0.00021917,2]
[315945402,1709298646301,-500.0,0.00021917,2]
[315945403,1709298646311,-500.0,0.00021917,2]
[315945404,1709298646320,-509.01394637,0.00021917,2]
[315945405,1709298646331,-500.0,0.00021917,2]
[315945406,1709298646340,-500.0,0.00021917,2]
[315945407,1709298646349,-500.0,0.00021917,2]
[315945408,1709298646359,-893.58,0.00021917,2]
[315945409,1709298646370,-500.0,0.00021917,2]
[315945410,1709298646380,-500.0,0.00021917,2]
[315945411,1709298646390,-500.0,0.00021917,2]
[315945412,1709298646399,-500.0,0.00021917,2]
[315945413,1709298646409,-500.0,0.00021917,2]
[315945414,1709298646418,-500.0,0.00021917,2]
[315945415,1709298646428,-500.0,0.00021917,2]
[315945416,1709298646437,-565.32145201,0.00021917,2]
[315945417,1709298646446,-508.72098368,0.00021917,2]
[315945418,1709298646455,-500.0,0.00021917,2]
[315945419,1709298646464,-500.0,0.00021917,2]
[315945420,1709298646473,-500.0,0.00021917,2]
[315945421,1709298646482,-500.0,0.00021917,2]
[315945422,1709298646492,-500.0,0.00021917,2]
[315945423,1709298646501,-500.0,0.00021917,2]
[315945424,1709298646511,-500.0,0.00021917,2]
[315945425,1709298646520,-500.0,0.00021917,2]
[315945426,1709298646529,-500.0,0.00021917,2]
[315945427,1709298646539,-500.0,0.00021917,2]
[315945428,1709298646548,-500.0,0.00021917,2]
[315945429,1709298646558,-500.0,0.00021917,2]
[315945430,1709298646567,-500.0,0.00021917,2]
[315945431,1709298646576,-500.0,0.00021917,2]
[315945432,1709298646585,-289.02729204,0.00021917,2]
[315945433,1709298646616,-210.97270796,0.00021917,2]
[315945434,1709298646625,-500.0,0.00021917,2]
[315945435,1709298646634,-500.0,0.00021917,2]
[315945436,1709298646643,-500.0,0.00021917,2]
[315945437,1709298646652,-500.0,0.00021917,2]
[315945438,1709298646662,-678.15,0.00021917,2]
[315945439,1709298646671,-503.23916609,0.00021917,2]
[315945440,1709298646681,-500.0,0.00021917,2]
[315945441,1709298646691,-500.0,0.00021917,2]
[315945442,1709298646700,-500.0,0.00021917,2]
[315945443,1709298646709,-500.0,0.00021917,2]
[315945444,1709298646719,-421.99218124,0.00021917,2]
[315945445,1709298646728,-500.0,0.00021917,2]
[315945446,1709298646737,-500.0,0.00021917,2]
[315945447,1709298646747,-500.0,0.00021917,2]
[315945448,1709298646756,-501.47728796,0.00021917,2]
[315945449,1709298646765,-500.0,0.00021917,2]
[315945450,1709298646775,-500.0,0.00021917,2]
[315945451,1709298646785,-500.0,0.00021917,2]
[315945452,1709298646794,-500.0,0.00021917,2]
[315945453,1709298646803,-500.0,0.00021917,2]
[315945454,1709298646812,-500.0,0.00021917,2]
[315945455,1709298646822,-172.79602848,0.00021917,2]
[315945456,1709298646833,-500.0,0.00021917,2]
[315945457,1709298646842,-500.0,0.00021917,2]
[315945458,1709298646852,-500.0,0.00021917,2]
[315945459,1709298646861,-500.0,0.00021917,2]
[315945460,1709298646870,-500.0,0.00021917,2]
[315945461,1709298646880,-500.0,0.00021917,2]
[315945462,1709298646889,-511.499605,0.00021917,2]
[315945463,1709298646898,-500.0,0.00021917,2]
[315945464,1709298646908,-500.0,0.00021917,2]
[315945465,1709298646917,-500.0,0.00021917,2]
[315945466,1709298646927,-500.0,0.00021917,2]